fUST/lending_fUST_20240927
["ID","MTS","AMOUNT","RATE_DAILY","PERIOD"]
[339256749,1727409045649,-500.0,0.00019452,2]
[339256751,1727409045659,-500.0,0.00019452,2]
[339256753,1727409045669,-500.0,0.00019452,2]
[339256754,1727409045678,-500.0,0.00019452,2]
[339256755,1727409045688,-500.0,0.00019452,2]
[339256756,1727409045698,-505.32202519,0.00019452,2]
[339256757,1727409045707,-200.19788452,0.00019452,2]
[339256758,1727409045717,-500.0,0.00019452,2]
[339256759,1727409045727,-2458.29,0.00019452,2]
[339256760,1727409045737,-500.0,0.00019452,2]
[339256762,1727409045749,-151.0,0.00019452,2]
[339256764,1727409045760,-313.98973406,0.00019452,2]
[339256766,1727409045770,-210.74709163,0.00019452,2]
[339256768,1727409045780,-613.62617819,0.00019452,2]
[339256770,1727409045790,-298.68161521,0.00019452,2]
[339256772,1727409045803,-500.0,0.00019452,2]
[339256774,1727409045814,-500.0,0.00019452,2]
[339256776,1727409045824,-500.0,0.00019452,2]
[339256777,1727409045834,-500.0,0.00019452,2]
[339256778,1727409045844,-500.0,0.00019452,2]
[339256779,1727409045853,-621.89,0.00019452,2]
[339256780,1727409045863,-223.592904,0.00019452,2]
[339256781,1727409045873,-223.592904,0.00019452,2]
[339256782,1727409045882,-553.41122372,0.00019452,2]
[339256784,1727409045892,-500.0,0.00019452,2]
[339256786,1727409045903,-408.20000064,0.00019452,2]
[339256788,1727409045914,-518.61842833,0.00019452,2]
[339256790,1727409045925,-151.0,0.00019452,2]
[339256792,1727409045935,-500.0,0.00019452,2]
[339256793,1727409045945,-862.2,0.00019452,2]
[339256794,1727409045955,-263.37469876,0.00019452,2]
[339256795,1727409045965,-500.0,0.00019452,2]
[339256796,1727409045974,-500.0,0.00019452,2]
[339256797,1727409045985,-522.57476596,0.00019452,2]
[339256798,1727409045994,-500.0,0.00019452,2]
[339256799,1727409046004,-500.0,0.00019452,2]
[339256800,1727409046014,-500.0,0.00019452,2]
[339256801,1727409046024,-500.83854048,0.00019473,2]
[339256802,1727409046033,-500.0,0.00019473,2]
[339256803,1727409046043,-500.99212174,0.00019473,2]
[339256804,1727409046054,-500.27728893,0.00019473,2]
[339256805,1727409046063,-500.0,0.00019473,2]
[339256806,1727409046072,-1001.615623,0.000195,2]
[339256807,1727409046082,-151.0,0.00019506,2]
[339256808,1727409046091,-151.0,0.00019506,2]
[339256809,1727409046100,-1000.0,0.00019604,2]
[339256810,1727409046110,-500.15446428,0.00019621,2]
[339256811,1727409046123,-151.958768,0.00019623,2]
[339256812,1727409046133,-253.870569,0.00019623,2]
[339256813,1727409046142,-253.870569,0.00019623,2]
[339256814,1727409046152,-309.045752,0.00019623,2]
[339256815,1727409046162,-309.045752,0.00019623,2]
[339256816,1727409046171,-151.0,0.00019623,2]
[339256817,1727409046181,-153.0,0.00019671,2]
[339256818,1727409046190,-1000.0,0.00019674,2]
[339256819,1727409046200,-465.00017566,0.00019691,2]
[339256820,1727409046210,-1000.0,0.00019693,2]
[339256821,1727409046219,-150.204243,0.000197,2]
[339256822,1727409046229,-1000.0,0.00019713,2]
[339256823,1727409046239,-231.032917,0.00019716,2]
[339256824,1727409046249,-231.032917,0.00019716,2]
[339256825,1727409046263,-151.0,0.00019716,2]
[339256827,1727409046272,-162.921587,0.00019716,2]
[339256828,1727409046282,-1000.0,0.00019716,2]
[339256829,1727409046292,-1000.0,0.00019716,2]
[339256830,1727409046301,-1000.0,0.00019716,2]
[339256831,1727409046311,-1000.0,0.00019716,2]
[339256832,1727409046320,-1000.0,0.00019716,2]
[339256833,1727409046330,-1000.0,0.00019716,2]
[339256834,1727409046339,-1000.0,0.00019716,2]
[339256835,1727409046348,-1000.0,0.00019716,2]
[339256836,1727409046358,-1000.0,0.00019716,2]
[339256837,1727409046367,-1000.0,0.00019716,2]
[339256838,1727409046378,-1000.0,0.00019716,2]
[339256839,1727409046387,-1000.0,0.00019716,2]
[339256840,1727409046396,-1000.0,0.00019716,2]
[339256841,1727409046406,-1000.0,0.00019716,2]
[339256842,1727409046415,-1000.0,0.00019716,2]
[339256843,1727409046425,-1000.0,0.00019716,2]
[339256844,1727409046435,-1000.0,0.00019716,2]
[339256845,1727409046445,-1000.0,0.00019716,2]
[339256846,1727409046455,-1000.0,0.00019716,2]
[339256847,1727409046465,-886.8164385,0.00019716,2]
[339256848,1727409046475,-254.477916,0.00019716,2]
[339256849,1727409046484,-254.477916,0.00019716,2]
[339256850,1727409046494,-151.0,0.00019716,2]
[339256851,1727409046505,-151.0,0.00019716,2]
[339256852,1727409046514,-1000.0,0.00019721,2]
[339256853,1727409046524,-1000.0,0.00019721,2]
[339256854,1727409046533,-436.94985077,0.00019721,2]
[339256855,1727409046543,-160.47628085,0.00019725,2]
[339256856,1727409046553,-2815.69662688,0.00019726,2]
[339256857,1727409046563,-500.0,0.00019726,2]
[339256858,1727409046572,-152.85971,0.00019726,2]
[339256859,1727409046581,-152.135856,0.00019726,2]
[339256860,1727409046591,-500.0,0.00019726,2]
[339256861,1727409046600,-500.0,0.00019726,2]
[339256862,1727409046610,-514.01516408,0.00019726,2]
[339256863,1727409046619,-500.0,0.00019726,2]
[339256864,1727409046628,-302.08497231,0.00019726,2]
[339256865,1727409046638,-263.9944114,0.00019726,2]
[339256866,1727409046647,-167.00798382,0.00019726,2]
[339256867,1727409046657,-500.0,0.00019726,2]
[339256868,1727409046667,-515.45,0.00019726,2]
[339256869,1727409046678,-504.0,0.00019726,2]
[339256870,1727409046687,-500.0,0.00019726,2]
[339256871,1727409046698,-500.0,0.00019726,2]
[339256872,1727409046711,-511.67284037,0.00019726,2]
[339256873,1727409046720,-750.72,0.00019726,2]
[339256874,1727409046730,-523.32495011,0.00019726,2]
[339256875,1727409046740,-500.0,0.00019726,2]
[339256876,1727409046749,-1917.79,0.00019726,2]
[339256877,1727409046769,-1370.48,0.00019726,2]
[339256878,1727409046778,-1586.2,0.00019726,2]
[339256879,1727409046788,-500.0,0.00019726,2]
[339256880,1727409046797,-1339.74,0.00019726,2]
[339256881,1727409046806,-707.96,0.00019726,2]
[339256882,1727409046815,-509.58871563,0.00019726,2]
[339256883,1727409046824,-414.00244945,0.00019726,2]
[339256884,1727409046834,-500.0,0.00019726,2]
[339256885,1727409046844,-500.0,0.00019726,2]
[339256886,1727409046853,-501.94748668,0.00019726,2]
[339256887,1727409046863,-510.17944481,0.00019726,2]
[339256888,1727409046873,-502.64573123,0.00019726,2]
[339256889,1727409046883,-504.58421127,0.00019726,2]
[339256890,1727409046892,-500.0,0.00019726,2]
[339256891,1727409046901,-500.0,0.00019726,2]
[339256892,1727409046911,-500.0,0.00019726,2]
[339256893,1727409046921,-151.0,0.00019726,2]
[339256894,1727409046931,-325.57776313,0.00019726,2]
[339256895,1727409046940,-21817.09,0.00019726,2]
[339256896,1727409046950,-510.47063791,0.00019726,2]
[339256897,1727409046959,-500.0,0.00019726,2]
[339256898,1727409046970,-507.73715243,0.00019726,2]
[339256899,1727409046980,-151.0,0.00019726,2]
[339256900,1727409046990,-4192.57,0.00019726,2]
[339256901,1727409047001,-1000.0,0.00019726,2]
[339256902,1727409047012,-514.66813122,0.00019726,2]
[339256903,1727409047022,-500.0,0.00019726,2]
[339256904,1727409047032,-151.0,0.00019726,2]
[339256905,1727409047042,-151.0,0.00019726,2]
[339256906,1727409047054,-500.0,0.00019726,2]
[339256907,1727409047065,-500.0,0.00019726,2]
[339256908,1727409047075,-500.0,0.00019726,2]
[339256909,1727409047084,-229.64,0.00019726,2]
[339256910,1727409047094,-623.21,0.00019726,2]
[339256911,1727409047104,-500.0,0.00019726,2]
[339256912,1727409047115,-500.0,0.00019726,2]
[339256913,1727409047126,-2432.81,0.00019726,2]
[339256914,1727409047136,-500.0,0.00019726,2]
[339256915,1727409047146,-500.0,0.00019726,2]
[339256916,1727409047155,-503.51736652,0.00019726,2]
[339256917,1727409047166,-605.04087207,0.00019726,2]
[339256918,1727409047178,-500.0,0.00019726,2]
[339256919,1727409047191,-500.0,0.00019726,2]
[339256920,1727409047204,-258.48525124,0.00019726,2]
[339256921,1727409047214,-504.86259437,0.00019726,2]
[339256922,1727409047223,-2458.29,0.00019726,2]
[339256923,1727409047234,-500.0,0.00019726,2]
[339256924,1727409047245,-500.0,0.00019726,2]
[339256925,1727409047256,-500.0,0.00019726,2]
[339256926,1727409047265,-500.0,0.00019726,2]
[339256927,1727409047274,-500.0,0.00019726,2]
[339256928,1727409047283,-621.89,0.00019726,2]
[339256929,1727409047294,-500.0,0.00019726,2]
[339256930,1727409047306,-151.0,0.00019726,2]
[339256931,1727409047316,-500.0,0.00019726,2]
[339256932,1727409047327,-862.2,0.00019726,2]
[339256933,1727409047336,-500.0,0.00019726,2]
[339256934,1727409047346,-500.0,0.00019726,2]
[339256935,1727409047356,-500.0,0.00019726,2]
[339256936,1727409047366,-500.0,0.00019726,2]
[339256937,1727409047375,-1466.18298167,0.00019733,10]
[339256938,1727409047384,-1000.0,0.00019763,2]
[339256939,1727409047393,-549.18110909,0.0001979,2]
[339256940,1727409047403,-155.153888,0.000198,2]
[339256941,1727409047412,-153.2816296,0.00019808,2]
[339256942,1727409047424,-337.0,0.0001981,2]
[339256943,1727409047434,-689.9883437,0.00019833,2]
[339256944,1727409047444,-1000.0,0.00019872,2]
[339256945,1727409047454,-3848.0,0.00019899,2]
[339256946,1727409047463,-150.112233,0.000199,2]
[339256947,1727409047473,-1000.0,0.0001996,2]
[339256948,1727409047482,-1136.32562703,0.00019973,2]
[339256949,1727409047492,-169.47869223,0.0001998,2]
[339256950,1727409047502,-45679.86943086,0.0001999,2]
[339256951,1727409047511,-151.0,0.0001999,2]
[339256953,1727409047521,-153.99012,0.0001999,2]
[339256955,1727409047530,-231.032917,0.0001999,2]
[339256957,1727409047540,-231.032917,0.0001999,2]
[339256959,1727409047549,-152.530097,0.0001999,2]
[339256961,1727409047559,-151.0,0.0001999,2]
[339256962,1727409047568,-184.144929,0.0001999,2]
[339256964,1727409047577,-253.870569,0.0001999,2]
[339256965,1727409047587,-253.870569,0.0001999,2]
[339256966,1727409047596,-309.045752,0.0001999,2]
[339256967,1727409047606,-309.045752,0.0001999,2]
[339256968,1727409047616,-151.0,0.0001999,2]
[339256969,1727409047625,-151.0,0.0001999,2]
[339256970,1727409047634,-151.0,0.0001999,2]
[339256971,1727409047644,-221.310272,0.0001999,2]
[339256972,1727409047654,-223.592904,0.0001999,2]
[339256973,1727409047663,-223.592904,0.0001999,2]
[339256974,1727409047673,-204.71326294,0.00019999,2]
[339256975,1727409047683,-7152.46853283,0.00019999,2]
[339256976,1727409047692,-151.0,0.00019999,2]
[339256977,1727409047703,-254.477916,0.00019999,2]
[339256978,1727409047826,-254.477916,0.00019999,2]
[339256979,1727409047835,-297.034865,0.00019999,2]
[339256980,1727409047845,-151.0,0.00019999,2]
[339256981,1727409047854,-151.0,0.00019999,2]
[339256982,1727409047863,-151.0,0.00019999,2]
[339256983,1727409047872,-151.0,0.00019999,2]
[339256984,1727409047881,-151.0,0.00019999,2]
[339256985,1727409047890,-155.0,0.0002,7]
[339256986,1727409047899,-150.112233,0.0002,2]
[339256987,1727409047909,-500.0,0.0002,2]
[339256988,1727409047918,-500.0,0.0002,2]
[339256989,1727409047927,-150.16428715,0.0002,2]
[339256990,1727409047936,-500.5314839,0.0002,2]
[339256991,1727409047946,-579.09297161,0.0002,2]
[339256992,1727409047955,-515.45,0.0002,2]
[339256993,1727409047965,-630.12290026,0.0002,2]
[339256994,1727409047974,-500.0,0.0002,2]
[339256995,1727409047984,-750.72,0.0002,2]
[339256996,1727409047994,-1917.79,0.0002,2]
[339256997,1727409048004,-1370.48,0.0002,2]
[339256998,1727409048014,-1586.2,0.0002,2]
[339256999,1727409048024,-500.0,0.0002,2]
[339257000,1727409048034,-1339.74,0.0002,2]
[339257001,1727409048044,-707.96,0.0002,2]
[339257002,1727409048054,-476.74367815,0.0002,2]
[339257003,1727409048063,-500.29800051,0.0002,2]
[339257004,1727409048073,-1000.0,0.0002,2]
[339257005,1727409048083,-500.0,0.0002,2]
[339257006,1727409048092,-21817.09,0.0002,2]
[339257007,1727409048102,-377.7251503,0.0002,2]
[339257008,1727409048112,-4192.57,0.0002,2]
[339257009,1727409048124,-1000.0,0.0002,2]
[339257010,1727409048133,-606.19330133,0.0002,2]
[339257011,1727409048143,-150.0,0.0002,2]
[339257012,1727409048153,-500.0,0.0002,2]
[339257013,1727409048163,-229.64,0.0002,2]
[339257014,1727409048172,-623.21,0.0002,2]
[339257015,1727409048183,-500.0,0.0002,2]
[339257016,1727409048192,-500.0,0.0002,2]
[339257017,1727409048203,-2432.81,0.0002,2]
[339257018,1727409048213,-176.2898464,0.0002,2]
[339257019,1727409048223,-2458.29,0.0002,2]
[339257020,1727409048232,-500.0,0.0002,2]
[339257021,1727409048241,-500.0,0.0002,2]
[339257022,1727409048253,-500.0,0.0002,2]
[339257023,1727409048262,-621.89,0.0002,2]
[339257024,1727409048271,-210.011963,0.0002,2]
[339257025,1727409048281,-862.2,0.0002,2]
[339257026,1727409048292,-506.49569927,0.00020021,2]
[339257027,1727409048301,-1000.0,0.00020021,2]
[339257028,1727409048310,-420.0,0.00020059,2]
[339257029,1727409048320,-151.0,0.0002007,2]
[339257030,1727409048330,-292.763543,0.00020075,2]
[339257031,1727409048339,-150.112233,0.000201,5]
[339257032,1727409048349,-150.112233,0.000201,5]
[339257033,1727409048359,-150.112233,0.000201,5]
[339257034,1727409048368,-526.0,0.00020182,2]
[339257035,1727409048378,-526.0,0.00020182,2]
[339257036,1727409048387,-526.0,0.00020182,2]
[339257037,1727409048396,-526.0,0.00020182,2]
[339257038,1727409048405,-526.0,0.00020182,2]
[339257039,1727409048415,-526.0,0.00020182,2]
[339257040,1727409048424,-526.0,0.00020182,2]
[339257041,1727409048434,-526.0,0.00020182,2]
[339257042,1727409048445,-526.0,0.00020182,2]
[339257043,1727409048454,-526.0,0.00020182,2]
[339257044,1727409048464,-526.0,0.00020182,2]
[339257045,1727409048474,-526.0,0.00020182,2]
[339257046,1727409048484,-526.0,0.00020182,2]
[339257047,1727409048493,-526.0,0.00020182,2]
[339257048,1727409048504,-153.0,0.00020182,2]
[339257049,1727409048514,-153.0,0.00020182,2]
[339257050,1727409048523,-153.0,0.00020182,2]
[339257051,1727409048532,-153.0,0.00020182,2]
[339257052,1727409048542,-526.0,0.00020184,2]
[339257053,1727409048552,-526.0,0.00020184,2]
[339257054,1727409048562,-526.0,0.00020184,2]
[339257055,1727409048573,-526.0,0.00020184,2]
[339257056,1727409048584,-526.0,0.00020184,2]
[339257057,1727409048594,-526.0,0.00020184,2]
[339257058,1727409048604,-526.0,0.00020184,2]
[339257059,1727409048616,-526.0,0.00020184,2]
[339257060,1727409048626,-526.0,0.00020184,2]
[339257061,1727409048636,-526.0,0.00020184,2]
[339257062,1727409048646,-526.0,0.00020184,2]
[339257063,1727409048656,-526.0,0.00020184,2]
[339257064,1727409048666,-526.0,0.00020184,2]
[339257065,1727409048676,-526.0,0.00020184,2]
[339257066,1727409048686,-153.0,0.00020184,2]
[339257067,1727409048696,-153.0,0.00020184,2]
[339257068,1727409048705,-153.0,0.00020184,2]
[339257069,1727409048714,-153.0,0.00020184,2]
[339257070,1727409048724,-526.0,0.00020186,2]
[339257071,1727409048733,-526.0,0.00020186,2]
[339257072,1727409048743,-526.0,0.00020186,2]
[339257073,1727409048755,-526.0,0.00020186,2]
[339257074,1727409048764,-526.0,0.00020186,2]
[339257075,1727409048774,-526.0,0.00020186,2]
[339257076,1727409048783,-526.0,0.00020186,2]
[339257077,1727409048793,-526.0,0.00020186,2]
[339257078,1727409048802,-526.0,0.00020186,2]
[339257079,1727409048811,-526.0,0.00020186,2]
[339257080,1727409048821,-526.0,0.00020186,2]
[339257081,1727409048830,-526.0,0.00020186,2]
[339257082,1727409048840,-526.0,0.00020186,2]
[339257083,1727409048849,-526.0,0.00020186,2]
[339257084,1727409048859,-153.0,0.00020187,2]
[339257085,1727409048868,-153.0,0.00020187,2]
[339257086,1727409048878,-153.0,0.00020187,2]
[339257087,1727409048888,-153.0,0.00020187,2]
[339257088,1727409048898,-526.0,0.00020189,2]
[339257089,1727409048908,-526.0,0.00020189,2]
[339257090,1727409048918,-526.0,0.00020189,2]
[339257091,1727409048928,-526.0,0.00020189,2]
[339257092,1727409048938,-526.0,0.00020189,2]
[339257093,1727409048948,-526.0,0.00020189,2]
[339257094,1727409048958,-526.0,0.00020189,2]
[339257095,1727409048967,-526.0,0.00020189,2]
[339257096,1727409048978,-526.0,0.00020189,2]
[339257097,1727409048987,-526.0,0.00020189,2]
[339257098,1727409048997,-526.0,0.00020189,2]
[339257099,1727409049008,-526.0,0.00020189,2]
[339257100,1727409049017,-526.0,0.00020189,2]
[339257101,1727409049026,-526.0,0.00020189,2]
[339257102,1727409049036,-153.0,0.00020189,2]
[339257103,1727409049045,-153.0,0.00020189,2]
[339257104,1727409049054,-153.0,0.00020189,2]
[339257105,1727409049064,-153.0,0.00020189,2]
[339257106,1727409049073,-151.0,0.00020192,2]
[339257107,1727409049082,-526.0,0.00020204,2]
[339257108,1727409049092,-526.0,0.00020204,2]
[339257109,1727409049101,-526.0,0.00020204,2]
[339257110,1727409049111,-526.0,0.00020204,2]
[339257111,1727409049123,-526.0,0.00020204,2]
[339257112,1727409049132,-526.0,0.00020204,2]
[339257113,1727409049142,-526.0,0.00020204,2]
[339257114,1727409049151,-526.0,0.00020204,2]
[339257115,1727409049161,-526.0,0.00020204,2]
[339257116,1727409049171,-526.0,0.00020204,2]
[339257117,1727409049180,-526.0,0.00020204,2]
[339257118,1727409049191,-526.0,0.00020204,2]
[339257119,1727409049204,-526.0,0.00020204,2]
[339257120,1727409049213,-153.0,0.00020204,2]
[339257121,1727409049223,-153.0,0.00020204,2]
[339257122,1727409049232,-153.0,0.00020204,2]
[339257123,1727409049242,-231.032917,0.00020212,2]
[339257124,1727409049253,-231.032917,0.00020212,2]
[339257125,1727409049262,-151.99993879,0.00020226,2]
[339257126,1727409049271,-420.0,0.0002023,2]
[339257127,1727409049281,-151.0,0.00020263,2]
[339257128,1727409049291,-151.0,0.00020263,2]
[339257129,1727409049300,-154.428271,0.00020273,2]
[339257130,1727409049310,-500.0,0.00020273,2]
[339257131,1727409049319,-500.0,0.00020273,2]
[339257132,1727409049328,-515.45,0.00020273,2]
[339257133,1727409049337,-500.0,0.00020273,2]
[339257134,1727409049347,-750.72,0.00020273,2]
[339257135,1727409049356,-1917.79,0.00020273,2]
[339257136,1727409049366,-1370.48,0.00020273,2]
[339257137,1727409049378,-1586.2,0.00020273,2]
[339257138,1727409049387,-500.0,0.00020273,2]
[339257139,1727409049396,-1339.74,0.00020273,2]
[339257140,1727409049406,-707.96,0.00020273,2]
[339257141,1727409049415,-151.0,0.00020273,2]
[339257142,1727409049424,-151.0,0.00020273,2]
[339257143,1727409049433,-254.477916,0.00020273,2]
[339257144,1727409049442,-254.477916,0.00020273,2]
[339257145,1727409049452,-500.0,0.00020273,2]
[339257146,1727409049461,-21817.09,0.00020273,2]
[339257147,1727409049470,-4192.57,0.00020273,2]
[339257148,1727409049480,-1000.0,0.00020273,2]
[339257149,1727409049489,-151.0,0.00020273,2]
[339257150,1727409049499,-272.711906,0.00020273,2]
[339257151,1727409049514,-229.64,0.00020273,2]
[339257152,1727409049524,-623.21,0.00020273,2]
[339257153,1727409049534,-500.0,0.00020273,2]
[339257154,1727409049543,-506.95147039,0.00020273,2]
[339257155,1727409049553,-2432.81,0.00020273,2]
[339257156,1727409049563,-151.0,0.00020273,2]
[339257157,1727409049572,-299.835517,0.00020273,2]
[339257158,1727409049582,-2458.29,0.00020273,2]
[339257159,1727409049592,-500.0,0.00020273,2]
[339257160,1727409049602,-500.0,0.00020273,2]
[339257161,1727409049611,-621.89,0.00020273,2]
[339257162,1727409049622,-223.592904,0.00020273,2]
[339257163,1727409049631,-223.592904,0.00020273,2]
[339257164,1727409049640,-862.2,0.00020273,2]
[339257165,1727409049650,-150.112233,0.000203,2]
[339257166,1727409049659,-150.112233,0.000203,5]
[339257167,1727409049669,-150.112233,0.000203,4]
[339257168,1727409049678,-156.738119,0.00020368,2]
[339257169,1727409049687,-216.499211,0.00020368,2]
[339257170,1727409049696,-162.231596,0.00020368,2]
[339257171,1727409049706,-165.90786,0.00020368,2]
[339257172,1727409049716,-164.243421,0.00020368,2]
[339257173,1727409049725,-163.638362,0.00020368,2]
[339257174,1727409049734,-165.155691,0.00020368,2]
[339257175,1727409049743,-150.112233,0.000204,4]
[339257176,1727409049757,-1500.0,0.00020431,2]
[339257177,1727409049767,-1501.07211232,0.00020431,2]
[339257178,1727409049803,-253.870569,0.00020432,2]
[339257179,1727409049813,-253.870569,0.00020432,2]
[339257180,1727409049822,-309.045752,0.00020432,2]
[339257181,1727409049832,-309.045752,0.00020432,2]
[339257182,1727409049841,-151.0,0.00020432,2]
[339257183,1727409049850,-151.0,0.00020442,2]
[339257184,1727409049859,-150.112233,0.000205,2]
[339257185,1727409049869,-150.112233,0.000205,3]
[339257186,1727409049879,-151.0,0.00020547,2]
[339257187,1727409049888,-151.0,0.00020547,2]
[339257188,1727409049898,-614.41819999,0.00020547,2]
[339257189,1727409049907,-260.6138427,0.00020547,2]
[339257190,1727409049917,-500.0,0.00020547,2]
[339257191,1727409049926,-231.032917,0.00020547,2]
[339257192,1727409049935,-231.032917,0.00020547,2]
[339257193,1727409049945,-515.45,0.00020547,2]
[339257194,1727409049955,-500.0,0.00020547,2]
[339257195,1727409049964,-750.72,0.00020547,2]
[339257196,1727409049973,-1917.79,0.00020547,2]
[339257197,1727409049982,-1370.48,0.00020547,2]
[339257198,1727409049993,-1586.2,0.00020547,2]
[339257199,1727409050003,-500.0,0.00020547,2]
[339257200,1727409050012,-1339.74,0.00020547,2]
[339257201,1727409050021,-707.96,0.00020547,2]
[339257202,1727409050031,-500.0,0.00020547,2]
[339257203,1727409050040,-21817.09,0.00020547,2]
[339257204,1727409050049,-151.0,0.00020547,2]
[339257205,1727409050059,-4192.57,0.00020547,2]
[339257206,1727409050069,-1000.0,0.00020547,2]
[339257207,1727409050079,-151.0,0.00020547,2]
[339257208,1727409050089,-151.0,0.00020547,2]
[339257209,1727409050098,-229.64,0.00020547,2]
[339257210,1727409050108,-623.21,0.00020547,2]
[339257211,1727409050121,-500.0,0.00020547,2]
[339257212,1727409050130,-2432.81,0.00020547,2]
[339257213,1727409050140,-2458.29,0.00020547,2]
[339257214,1727409050149,-500.0,0.00020547,2]
[339257215,1727409050159,-541.25309905,0.00020547,2]
[339257216,1727409050168,-621.89,0.00020547,2]
[339257217,1727409050177,-862.2,0.00020547,2]
[339257218,1727409050187,-150.112233,0.000206,2]
[339257219,1727409050197,-150.112233,0.000206,3]
[339257220,1727409050206,-14644.14925646,0.0002061,2]
[339257221,1727409050215,-151.0,0.00020621,2]
[339257222,1727409050224,-151.0,0.00020621,2]
[339257223,1727409050233,-254.477916,0.00020621,2]
[339257224,1727409050242,-254.477916,0.00020621,2]
[339257225,1727409050253,-526.743,0.00020621,2]
[339257226,1727409050262,-1220.467,0.00020621,2]
[339257227,1727409050272,-151.0,0.00020621,2]
[339257228,1727409050282,-151.0,0.00020621,2]
[339257229,1727409050292,-223.592904,0.00020621,2]
[339257230,1727409050302,-223.592904,0.00020621,2]
[339257231,1727409050311,-55942.0,0.00020621,2]
[339257232,1727409050321,-150.0,0.00020673,2]
[339257233,1727409050330,-465.00000878,0.00020676,2]
[339257234,1727409050340,-151.0,0.00020692,2]
[339257235,1727409050349,-1500.0,0.00020731,2]
[339257236,1727409050359,-150.112233,0.000208,2]
[339257237,1727409050368,-151.0,0.00020811,2]
[339257238,1727409050378,-151.0,0.00020811,2]
[339257239,1727409050387,-231.032917,0.00020811,2]
[339257240,1727409050396,-231.032917,0.00020811,2]
[339257241,1727409050405,-181.95433877,0.00020821,2]
[339257242,1727409050414,-515.45,0.00020821,2]
[339257243,1727409050423,-500.0,0.00020821,2]
[339257244,1727409050432,-750.72,0.00020821,2]
[339257245,1727409050441,-1917.79,0.00020821,2]
[339257246,1727409050451,-1370.48,0.00020821,2]
[339257247,1727409050460,-1586.2,0.00020821,2]
[339257248,1727409050469,-227.93339661,0.00020821,2]
[339257249,1727409050478,-1339.74,0.00020821,2]
[339257250,1727409050487,-707.96,0.00020821,2]
[339257251,1727409050496,-233.94,0.00020821,2]
[339257252,1727409050506,-21817.09,0.00020821,2]
[339257253,1727409050516,-283.37214,0.00020821,2]
[339257254,1727409050525,-4192.57,0.00020821,2]
[339257255,1727409050534,-1000.0,0.00020821,2]
[339257256,1727409050543,-151.0,0.00020821,2]
[339257257,1727409050553,-291.897155,0.00020821,2]
[339257258,1727409050563,-229.64,0.00020821,2]
[339257259,1727409050573,-253.870569,0.00020821,2]
[339257260,1727409050582,-253.870569,0.00020821,2]
[339257261,1727409050592,-309.045752,0.00020821,2]
[339257262,1727409050602,-623.21,0.00020821,2]
[339257263,1727409050613,-309.045752,0.00020821,2]
[339257264,1727409050623,-500.0,0.00020821,2]
[339257265,1727409050632,-2432.81,0.00020821,2]
[339257266,1727409050644,-151.0,0.00020821,2]
[339257267,1727409050654,-2458.29,0.00020821,2]
[339257268,1727409050664,-500.0,0.00020821,2]
[339257269,1727409050674,-621.89,0.00020821,2]
[339257270,1727409050683,-862.2,0.00020821,2]